bitfinex-derivatives/quotes_SOLF0:USTF0_20241025
["timestamp","ask_amount","ask_price","bid_price","bid_amount"]
[1729828873899,7.90928318,175.06,174.96,4.4]
[1729828873900,2.858,175.03,174.99,7.90928318]
[1729828875490,3.7781,175.07,174.99,7.90928318]
[1729828875800,7.90928318,175.06,174.99,7.90928318]
[1729828876093,10.76698318,175.04,174.99,10.76768318]
[1729828876296,7.90928318,175.03,174.97,7.90928318]
[1729828876499,7.90928318,175.03,174.96,4.4]
[1729828876694,7.90928318,175.03,174.97,7.90928318]
[1729828877897,15.16708318,175.04,174.98,7.90928318]
[1729828878097,16.08738318,175.07,175.01,7.90928318]
[1729828879298,2.8576,175.05,175.01,10.76738318]
[1729828880396,2.8576,175.05,175.01,2.8581]
[1729828883301,2.8576,175.05,174.98,12.34973554]
[1729828883605,2.8576,175.05,175.0,2.8583]
[1729828884598,2.8575,175.06,175.01,2.8582]
[1729828889304,4.38,175.1,175.02,2.8579]
[1729828889509,16.72973554,175.11,175.02,2.8579]
[1729828890295,16.72973554,175.11,175.0,12.34973554]
[1729828890508,4.38,175.11,175.02,12.34973554]
[1729828890803,12.34973554,175.1,175.0,12.34973554]
[1729828891005,12.34973554,175.08,174.99,4.38]
[1729828891197,6.8363,175.07,174.99,4.38]
[1729828891607,6.8363,175.07,175.0,2.8584]
[1729828891817,6.8363,175.07,174.99,4.38]
[1729828892306,6.8363,175.07,175.0,2.8584]
[1729828892307,2.8577,175.05,175.0,2.8584]
[1729828894010,2.8577,175.05,174.99,4.38]
[1729828894211,2.8577,175.05,175.01,2.8582]
[1729828894513,5.5523,175.07,175.01,12.34973554]
[1729828894711,4.38,175.07,175.02,2.8579]
[1729828894904,4.38,175.1,175.02,2.8579]
[1729828895104,2.8573,175.07,175.02,2.8579]
[1729828895704,4.38,175.1,175.04,2.8576]
[1729828895705,2.8567,175.1,175.04,2.8576]
[1729828895900,4.38,175.12,175.03,12.34973554]
[1729828896101,4.38,175.12,175.03,16.72973554]
[1729828896315,6.8078,175.13,175.05,12.34973554]
[1729828897016,2.8568,175.1,175.05,15.20723554]
[1729828898007,2.8568,175.1,175.05,12.34973554]
[1729828898215,2.8568,175.1,175.06,2.8574]
[1729828900313,2.8568,175.1,175.08,7.90606563]
[1729828901411,2.8566,175.11,175.08,7.90606563]
[1729828902018,14.71386563,175.13,175.08,7.90606563]
[1729828903405,2.8568,175.1,175.08,7.90606563]
[1729828903613,7.90606563,175.12,175.03,4.38]
[1729828903816,7.90606563,175.12,175.06,7.90606563]
[1729828904007,7.90606563,175.12,175.01,1.8556]
[1729828904214,2.8566,175.11,175.06,7.90606563]
[1729828904412,7.90606563,175.12,175.06,7.90606563]
[1729828905120,2.8572,175.07,175.04,7.90606563]
[1729828905419,2.8572,175.07,175.0,1.2717]
[1729828905420,7.90606563,175.09,175.02,4.38]
[1729828905611,7.90606563,175.09,175.02,12.28606563]
[1729828905812,2.8573,175.07,175.02,7.2379]
[1729828906118,2.8573,175.07,175.02,15.14396563]
[1729828908218,2.8573,175.07,175.02,10.76396563]
[1729828909019,7.90606563,175.03,174.93,10.30639418]
[1729828909312,7.90606563,175.03,174.98,7.90606563]
[1729828909515,10.76406563,175.03,174.98,2.8586]
[1729828909716,10.76406563,175.03,174.98,10.76466563]
[1729828909916,7.90606563,175.03,174.98,10.76466563]
[1729828910222,2.8581,175.02,174.98,10.76466563]
[1729828910528,2.8581,175.02,174.99,2.8585]
[1729828911219,7.90606563,175.01,174.94,1.1853]
[1729828911424,10.76466563,174.99,174.95,7.2391]
[1729828911620,7.90606563,174.99,174.95,4.38]
[1729828912019,2.8588,174.98,174.95,4.38]
[1729828912417,7.90606563,174.99,174.95,4.38]
[1729828912619,2.859,174.97,174.95,4.38]
[1729828913028,7.90606563,174.98,174.95,4.38]
[1729828913229,7.90606563,174.99,174.95,12.28606563]
[1729828913431,2.8588,174.98,174.95,12.28606563]
[1729828914031,2.8588,174.98,174.95,15.14516563]
[1729828915229,10.76466563,174.99,174.95,15.14516563]
[1729828917529,10.76466563,174.99,174.96,2.859]
[1729828920933,10.76466563,174.99,174.95,10.76526563]
[1729828921128,2.5082,175.04,174.96,5.32017869]
[1729828921129,2.8589,174.97,174.96,5.32017869]
[1729828921328,2.8589,174.97,174.9,12.20606563]
[1729828921329,7.90606563,174.97,174.9,12.20606563]
[1729828921530,7.90606563,174.95,174.91,15.26730253]
[1729828921727,10.76526563,174.95,174.92,5.32192407]
[1729828922028,10.76526563,174.95,174.93,5.32192407]
[1729828922228,10.76526563,174.95,174.91,2.8597]
[1729828922630,7.90606563,174.95,174.92,5.32170704]
[1729828922833,7.90606563,174.95,174.89,12.20606563]
[1729828923036,7.90606563,174.95,174.9,15.26566774]
[1729828923335,7.90606563,174.95,174.91,18.12536774]
[1729828923635,7.90606563,174.95,174.92,5.32127817]
[1729828923828,7.90606563,174.95,174.93,5.32127817]
[1729828924029,7.90606563,174.95,174.92,2.8597]
[1729828924326,7.90606563,174.95,174.93,5.32068802]
[1729828924523,7.90606563,174.95,174.92,2.8597]
[1729828925727,7.90606563,174.95,174.89,12.20606563]
[1729828925926,7.90606563,174.95,174.9,15.26218462]
[1729828926233,10.76526563,174.95,174.91,8.1797108]
[1729828926428,10.76526563,174.95,174.92,5.3200108]
[1729828926634,10.76526563,174.95,174.91,11.37152236]
[1729828926833,10.76526563,174.95,174.92,5.31946044]
[1729828927038,10.76526563,174.95,174.92,2.8597]
[1729828927634,2.8591,174.96,174.92,2.8597]
[1729828931027,7.90606563,174.95,174.89,4.3]
[1729828931233,7.90606563,174.92,174.9,15.25750114]
[1729828931443,7.90606563,174.92,174.82,1.214]
[1729828931735,7.90606563,174.89,174.86,2.8605]
[1729828931940,7.90606563,174.89,174.87,15.25738793]
[1729828932136,7.90606563,174.89,174.88,5.3180432]
[1729828932137,2.8602,174.89,174.88,5.3180432]
[1729828932350,7.90606563,174.89,174.83,9.9404221]
[1729828932535,7.90606563,174.85,174.84,5.31746519]
[1729828933439,7.90606563,174.85,174.79,12.20606563]
[1729828933440,1.2046,174.88,174.8,2.80169744]
[1729828933633,7.90606563,174.86,174.81,6.74833856]
[1729828933939,7.90606563,174.86,174.82,18.11746502]
[1729828934143,7.90606563,174.86,174.83,5.31739154]
[1729828934329,7.90606563,174.86,174.82,2.8613]
[1729828934531,7.90606563,174.86,174.83,5.31235543]
[1729828934732,7.90606563,174.86,174.82,2.8613]
[1729828935029,7.90606563,174.86,174.83,5.31231497]
[1729828935230,7.90606563,174.86,174.82,2.8613]
[1729828935437,7.90606563,174.86,174.83,5.31008093]
[1729828935634,7.90606563,174.86,174.82,2.8613]
[1729828935837,7.90606563,174.86,174.83,5.31007745]
[1729828936044,7.90606563,174.86,174.82,2.8613]
[1729828936241,10.76676563,174.86,174.82,2.8613]
[1729828937139,10.76656563,174.87,174.84,2.861]
[1729828937447,12.20606563,174.91,174.86,7.90606563]
[1729828937941,10.76626563,174.89,174.85,2.8607]
[1729828938946,7.90606563,174.89,174.85,2.8607]
[1729828939752,7.90606563,174.88,174.85,2.8607]
[1729828941145,7.90606563,174.88,174.83,12.20606563]
[1729828941447,7.90606563,174.88,174.84,5.30212098]
[1729828941650,7.90606563,174.9,174.84,7.90606563]
[1729828941846,7.90606563,174.9,174.85,5.30142725]
[1729828942046,7.90606563,174.9,174.84,7.90606563]
[1729828942250,7.90606563,174.9,174.85,5.30108779]
[1729828942451,7.90606563,174.9,174.84,7.90606563]
[1729828942653,7.90606563,174.9,174.87,2.8605]
[1729828944146,2.8597,174.93,174.89,2.8601]
[1729828944446,10.76576563,174.93,174.89,2.8601]
[1729828954764,2.8595,174.94,174.9,2.86]
[1729828954965,7.90606563,174.94,174.88,7.90606563]
[1729828956570,7.90606563,174.94,174.9,2.8599]
[1729828956971,7.90606563,174.94,174.88,7.90606563]
[1729828957477,7.90606563,174.94,174.91,2.8598]
[1729828959574,7.90606563,174.94,174.88,7.90606563]
[1729828959877,7.90606563,174.89,174.85,4.26]
[1729828960373,7.90606563,174.89,174.86,2.8606]
[1729828961080,7.90606563,174.89,174.85,4.26]
[1729828961570,7.90606563,174.87,174.85,4.26]
[1729828962165,7.90606563,174.86,174.81,4.26]
[1729828962370,7.90606563,174.82,174.79,5.29810248]
[1729828962781,7.90606563,174.82,174.78,4.26]
[1729828963078,7.90606563,174.82,174.79,5.29849114]
[1729828963368,7.90606563,174.82,174.78,9.55782509]
[1729828964375,7.90606563,174.82,174.8,2.8615]
[1729828965371,7.90606563,174.82,174.79,2.8618]
[1729828965573,7.90606563,174.82,174.78,4.26]
[1729828965979,7.90606563,174.82,174.78,9.55782509]
[1729828966177,7.90606563,174.82,174.78,4.26]
[1729828966979,7.90606563,174.82,174.79,2.8618]
[1729828967177,7.90606563,174.83,174.78,4.26]
[1729828967378,7.90606563,174.83,174.78,9.55781197]
[1729828968173,7.90606563,174.83,174.78,4.26]
[1729828968480,7.90606563,174.83,174.8,2.8616]
[1729828969479,7.90606563,174.83,174.79,5.30016291]
[1729828969480,7.90606563,174.83,174.79,13.20622854]
[1729828969678,7.90606563,174.85,174.82,2.8612]
[1729828970378,2.5456,174.87,174.85,2.8607]
[1729828970575,9.16216563,174.87,174.79,8.48293699]
[1729828970773,9.16216563,174.87,174.81,7.90606563]
[1729828971584,7.90606563,174.87,174.83,7.90606563]
[1729828971774,1.2123,174.98,174.84,7.90606563]
[1729828971775,1.2789,174.97,174.84,7.90606563]
[1729828971982,7.90606563,174.92,174.86,7.90606563]
[1729828972482,7.90606563,174.92,174.86,12.16606563]
[1729828973189,10.76576563,174.92,174.87,5.30785608]
[1729828973381,10.76576563,174.92,174.88,2.8602]
[1729828973981,7.90606563,174.92,174.89,2.8601]
[1729828974186,10.76566563,174.93,174.89,2.8601]
[1729828975591,2.8597,174.92,174.88,2.8603]
[1729828975987,4.26,174.95,174.87,7.90606563]
[1729828976181,2.5057,174.97,174.88,5.3141283]
[1729828976182,7.90606563,174.93,174.88,5.3141283]
[1729828976387,7.90606563,174.93,174.89,5.31434515]
[1729828976686,7.90606563,174.93,174.87,7.90606563]
[1729828976889,7.90606563,174.93,174.89,2.86]
[1729828977089,7.90606563,174.93,174.87,7.90606563]
[1729828977287,7.90606563,174.93,174.88,15.24722978]
[1729828977487,7.90606563,174.93,174.89,5.3141451]
[1729828977689,7.90606563,174.93,174.87,7.90606563]
[1729828977991,7.90606563,174.93,174.88,15.24807695]
[1729828978181,7.90606563,174.93,174.89,5.31446602]
[1729828978378,7.90606563,174.93,174.87,7.90606563]
[1729828978584,7.90606563,174.93,174.89,7.90606563]
[1729828978981,7.90606563,174.93,174.9,2.86]
[1729828979380,2.5057,174.97,174.9,7.90606563]
[1729828979585,10.41176563,174.97,174.91,13.22069067]
[1729828979785,10.41176563,174.97,174.91,7.90606563]
[1729828979984,7.90606563,174.95,174.91,7.90606563]
[1729828980183,7.90606563,174.95,174.91,10.76576563]
[1729828980384,2.5057,174.97,174.91,7.90606563]
[1729828980588,7.90606563,174.93,174.92,5.31590434]
[1729828980782,7.90606563,174.93,174.89,9.93597607]
[1729828981080,7.90606563,174.9,174.86,4.26]
[1729828981282,7.90606563,174.9,174.87,15.2536478]
[1729828981485,7.90606563,174.9,174.88,5.31657946]
[1729828981789,7.90606563,174.9,174.89,5.31657946]
[1729828981995,7.90606563,174.9,174.87,9.93857619]
[1729828982181,7.90606563,174.9,174.86,4.26]
[1729828982182,7.90606563,174.9,174.88,5.31783223]
[1729828982496,7.90606563,174.9,174.86,4.26]
[1729828982692,2.86,174.91,174.86,12.16606563]
[1729828982693,7.90606563,174.91,174.86,12.16606563]
[1729828982880,7.90606563,174.91,174.87,15.25760556]
[1729828983086,7.90606563,174.91,174.88,5.31808707]
[1729828983300,7.90606563,174.91,174.89,5.31808707]
[1729828983602,10.76596563,174.91,174.87,2.8605]
[1729828983784,10.76596563,174.91,174.88,5.31882316]
[1729828983985,10.76596563,174.91,174.89,5.31882316]
[1729828984193,10.76596563,174.91,174.87,2.8605]
[1729828984382,10.76596563,174.91,174.88,6.75019273]
[1729828984587,10.76576563,174.92,174.89,5.31961814]
[1729828984782,7.90606563,174.92,174.86,12.16606563]
[1729828984994,7.90606563,174.91,174.87,15.26136794]
[1729828985185,10.76606563,174.91,174.88,5.31953599]
[1729828985388,10.76606563,174.91,174.89,5.31953599]
[1729828985590,10.76606563,174.91,174.86,12.16606563]
[1729828985891,10.76606563,174.91,174.87,18.12434942]
[1729828986086,10.76606563,174.91,174.88,5.32048996]
[1729828986283,10.76606563,174.91,174.89,5.32048996]
[1729828986494,10.76606563,174.91,174.87,2.8605]
[1729828986693,2.86,174.9,174.88,5.32144811]
[1729828986894,2.86,174.9,174.89,5.32144811]
[1729828987991,10.76596563,174.91,174.89,5.32144811]
[1729828988299,10.76596563,174.91,174.87,2.8605]
[1729828988489,10.76596563,174.91,174.88,6.75411281]
[1729828988689,10.76596563,174.91,174.89,5.32351902]
[1729828988892,10.76596563,174.91,174.87,2.8605]
[1729828989098,10.76596563,174.91,174.88,15.27173205]
[1729828989304,10.76596563,174.91,174.89,5.32351521]
[1729828989599,10.76596563,174.91,174.9,5.32452078]
[1729828989798,10.76596563,174.91,174.87,2.8605]
[1729828990100,10.76596563,174.91,174.88,5.32469571]
[1729828990296,10.76596563,174.91,174.89,5.32469571]
[1729828990499,10.76596563,174.91,174.87,2.8605]
[1729828990693,7.90606563,174.9,174.88,15.27573814]
[1729828990898,10.76606563,174.9,174.89,5.32505542]
[1729828991299,7.90606563,174.9,174.89,5.32505542]
[1729828991491,7.90606563,174.9,174.89,15.27554217]
[1729828991699,2.5057,174.97,174.89,18.13554217]
[1729828991901,2.8593,174.95,174.9,15.27532518]
[1729828992093,10.76536563,174.95,174.91,5.32505542]
[1729828992299,6.7657,174.97,174.92,5.32505542]
[1729828992599,6.7657,174.97,174.93,5.32505542]
[1729828992600,13.27076563,174.97,174.93,5.32505542]
[1729828992794,13.27076563,174.97,174.91,7.90606563]
[1729828992795,13.27076563,174.97,174.92,2.8597]
[1729828992999,2.5057,174.97,174.93,13.23070765]
[1729828993198,2.5057,174.97,174.94,5.32464202]
[1729828993394,2.5057,174.97,174.93,7.90606563]
[1729828993898,2.5057,174.97,174.94,5.3243249]
[1729828994097,2.5057,174.97,174.93,7.90606563]
[1729828994302,2.5057,174.97,174.94,5.32432]
[1729828994604,2.5057,174.97,174.93,10.76546563]
[1729828994800,2.5057,174.97,174.94,5.3241448]
[1729828995004,2.5057,174.97,174.93,10.76546563]
[1729828995191,2.5057,174.97,174.94,5.3241448]
[1729828995397,2.5057,174.97,174.95,5.3241448]
[1729828995596,2.5057,174.97,174.93,10.76546563]
[1729828995798,2.5057,174.97,174.94,5.32369867]
[1729828995799,5.3646,174.97,174.94,5.32369867]
[1729828996000,5.3646,174.97,174.93,10.76546563]
[1729828996199,5.3646,174.97,174.94,5.32380197]
[1729828996396,5.3646,174.97,174.93,10.76546563]
[1729828996601,5.3646,174.97,174.94,5.32364017]
[1729828996799,5.3646,174.97,174.93,10.76546563]
[1729828997098,5.3646,174.97,174.94,5.32364861]
[1729828997304,5.3646,174.97,174.93,10.76546563]
[1729828997505,5.3646,174.97,174.94,5.32353412]
[1729828997701,5.3646,174.97,174.93,10.76546563]
[1729828997902,5.3646,174.97,174.94,5.32352498]
[1729828998101,5.3646,174.97,174.93,10.76546563]
[1729828998302,5.3646,174.97,174.94,5.32350543]
[1729828998504,5.3646,174.97,174.93,7.90606563]
[1729828998696,5.3646,174.97,174.94,5.32348895]
[1729828998896,5.3646,174.97,174.92,2.8596]
[1729828998897,7.90606563,174.96,174.92,2.8596]
[1729828999096,7.90606563,174.96,174.93,5.32350459]
[1729828999300,7.90606563,174.96,174.94,5.32350459]
[1729828999594,7.90606563,174.96,174.92,2.8596]
[1729828999794,7.90606563,174.96,174.93,5.32342253]
[1729828999795,10.76506563,174.96,174.93,5.32342253]
[1729829000005,10.76506563,174.96,174.92,2.8596]
[1729829000301,2.8594,174.94,174.93,5.32350688]
[1729829000502,7.90606563,174.94,174.87,4.26]
[1729829000693,7.90606563,174.91,174.88,9.94851502]
[1729829001000,7.90606563,174.91,174.89,9.84089474]
[1729829001199,7.90606563,174.9,174.71,5.56814377]
[1729829001403,2.5057,174.97,174.71,5.56814377]
[1729829001404,7.90606563,174.89,174.82,7.90606563]
[1729829001605,4.26,174.92,174.84,2.861]
[1729829001606,7.90606563,174.87,174.84,2.861]
[1729829001800,7.90606563,174.87,174.85,9.84016646]
[1729829002102,7.90606563,174.87,174.84,2.861]
[1729829002300,7.90606563,174.87,174.85,1.43083133]
[1729829002504,2.8608,174.85,174.81,2.8614]
[1729829002692,7.90606563,174.87,174.82,14.10261071]
[1729829002896,7.90606563,174.87,174.83,9.84261071]
[1729829003093,10.76656563,174.87,174.84,9.84261071]
[1729829003302,10.76656563,174.87,174.85,1.43079159]
[1729829003508,7.90606563,174.87,174.82,4.26]
[1729829003702,7.90606563,174.87,174.84,2.861]
[1729829003898,7.90606563,174.87,174.85,1.43088784]
[1729829004099,7.90606563,174.87,174.84,2.861]
[1729829006007,7.90606563,174.87,174.85,1.43088199]
[1729829006210,7.90606563,174.87,174.84,2.861]
[1729829006407,7.90606563,174.87,174.85,1.43088151]
[1729829006709,7.90606563,174.87,174.86,1.43088151]
[1729829007009,7.90606563,174.87,174.84,2.861]
[1729829007205,7.90606563,174.87,174.85,9.84302904]
[1729829007508,7.90606563,174.87,174.86,1.43078823]
[1729829008407,7.90606563,174.87,174.84,2.861]
[1729829008607,7.90606563,174.87,174.85,9.84295255]
[1729829008906,7.90606563,174.87,174.86,1.43080977]
[1729829012005,7.90606563,174.87,174.86,1.43080216]
[1729829012309,7.90606563,174.87,174.84,2.861]
[1729829012504,7.90606563,174.87,174.85,15.09984108]
[1729829012702,7.90606563,174.87,174.86,5.25732221]
[1729829012902,7.90606563,174.88,174.86,6.68814594]
[1729829013110,7.90606563,174.88,174.87,5.25732221]
[1729829014611,7.90606563,174.9,174.87,5.25732221]
[1729829014909,7.90606563,174.91,174.88,5.25693742]
[1729829015209,7.90606563,174.91,174.85,7.90606563]
[1729829015405,7.90606563,174.91,174.86,15.09873324]
[1729829015607,7.90606563,174.91,174.88,2.8603]
[1729829018301,7.90606563,174.9,174.85,7.90606563]
[1729829018613,7.90606563,174.87,174.86,15.09882877]
[1729829019415,7.90606563,174.87,174.82,4.26]
[1729829019607,7.90606563,174.87,174.86,5.25682814]
[1729829019804,7.90606563,174.87,174.86,9.84168189]
[1729829020007,7.90606563,174.87,174.86,15.09851003]
[1729829020313,7.90606563,174.87,174.86,6.687585]
[1729829020500,7.90606563,174.87,174.86,15.09883452]
[1729829022915,7.90606563,174.87,174.86,6.68791958]
[1729829023513,7.90606563,174.87,174.86,1.43076844]
[1729829023713,7.90606563,174.87,174.86,6.68782387]
[1729829024309,7.90606563,174.88,174.86,15.09912729]
[1729829024527,7.90606563,174.88,174.87,5.25705543]
[1729829024714,10.76636563,174.88,174.87,5.25705543]
[1729829027212,10.76636563,174.88,174.85,2.8608]
[1729829027411,10.76636563,174.88,174.87,5.25732451]
[1729829027617,7.90606563,174.88,174.87,5.25732451]
[1729829028421,7.90606563,174.88,174.87,6.6880353]
[1729829028918,7.90606563,174.88,174.87,5.25732451]
[1729829030112,7.90606563,174.88,174.87,6.68802943]
[1729829030918,7.90606563,174.88,174.85,2.8608]
[1729829031123,7.90606563,174.88,174.87,5.25758639]
[1729829031520,7.90606563,174.88,174.87,6.68829928]
[1729829032625,7.90606563,174.88,174.87,5.25758639]
[1729829032822,7.90606563,174.88,174.87,6.68829928]
[1729829033023,4.26,174.94,174.87,6.68829928]
[1729829033224,7.90606563,174.92,174.87,6.68829928]
[1729829033422,7.90606563,174.93,174.88,7.90606563]
[1729829033932,7.90606563,174.93,174.89,15.10225924]
[1729829034224,7.90606563,174.93,174.9,9.54875552]
[1729829034423,7.90606563,174.93,174.91,5.25837732]
[1729829034614,7.90606563,174.93,174.9,2.8599]
[1729829034819,7.90606563,174.93,174.91,5.25910348]
[1729829035020,7.90606563,174.93,174.9,2.86]
[1729829035224,7.90606563,174.93,174.91,5.25903695]
[1729829035415,7.90606563,174.93,174.92,5.25903695]
[1729829035820,7.90606563,174.93,174.92,5.25978576]
[1729829038020,7.90606563,174.95,174.92,6.69012209]
[1729829038221,12.01906563,174.96,174.93,5.26129489]
[1729829038418,4.113,174.96,174.91,10.76586563]
[1729829038615,4.2,174.99,174.94,2.8592]
[1729829038819,7.90606563,174.97,174.92,7.90606563]
[1729829039024,7.90606563,174.97,174.93,13.68106835]
[1729829039233,2.4979,175.05,174.94,5.26216485]
[1729829039421,7.90606563,174.96,174.9,4.2]
[1729829039725,7.90606563,174.95,174.92,2.8596]
[1729829040024,7.90606563,174.95,174.93,5.26146143]
[1729829040217,7.90606563,174.95,174.9,12.10606563]
[1729829040424,7.90606563,174.94,174.91,15.11087364]
[1729829040619,7.90606563,174.94,174.92,5.2617213]
[1729829040927,2.8592,174.95,174.9,2.8599]
[1729829041132,7.90606563,174.94,174.91,9.55210995]
[1729829041317,7.90606563,174.94,174.92,5.26184083]
[1729829041516,7.90606563,174.94,174.91,2.8598]
[1729829041822,7.90606563,174.94,174.92,5.26182413]
[1729829042023,7.90606563,174.94,174.91,2.8598]
[1729829042332,7.90606563,174.94,174.92,5.26166563]
[1729829042518,7.90606563,174.94,174.91,2.8598]
[1729829042828,7.90606563,174.94,174.92,5.26155596]
[1729829043026,7.90606563,174.94,174.91,2.8598]
[1729829043231,7.90606563,174.94,174.92,5.26155596]
[1729829043421,2.8596,174.93,174.88,4.2]
[1729829043722,7.90606563,174.91,174.89,15.11067956]
[1729829043928,7.90606563,174.9,174.85,12.10606563]
[1729829044129,7.90606563,174.9,174.86,15.11092169]
[1729829044331,7.90606563,174.9,174.87,15.11092169]
[1729829044533,7.90606563,174.9,174.85,4.2]
[1729829044534,4.2,174.93,174.88,15.11105159]
[1729829044720,10.76626563,174.89,174.83,4.2]
[1729829044921,7.8571,174.92,174.85,7.90606563]
[1729829045122,7.90606563,174.91,174.87,2.8605]
[1729829045316,7.90606563,174.91,174.88,15.11342851]
[1729829045527,7.90606563,174.91,174.87,2.8605]
[1729829045528,7.90606563,174.91,174.89,5.2625603]
[1729829045824,7.90606563,174.91,174.87,2.8605]
[1729829046030,7.90606563,174.91,174.88,15.11212605]
[1729829046231,7.90606563,174.9,174.89,5.26210081]
[1729829048727,2.8599,174.91,174.89,5.26210081]
[1729829048929,10.76596563,174.91,174.86,2.8605]
[1729829049227,10.76596563,174.91,174.87,15.11278442]
[1729829049427,10.76596563,174.91,174.88,15.11278442]
[1729829049627,7.90606563,174.89,174.83,2.8611]
[1729829049829,7.90606563,174.85,174.84,15.11458547]
[1729829050422,7.90606563,174.85,174.83,2.8611]
[1729829050628,7.90606563,174.85,174.84,15.11433762]
[1729829053929,10.76686563,174.85,174.84,15.11433762]
[1729829057226,10.76686563,174.85,174.84,6.69374027]
[1729829057827,10.76686563,174.85,174.81,2.8614]
[1729829058029,10.76686563,174.85,174.82,15.10820206]
[1729829058229,10.76686563,174.85,174.83,6.69141133]
[1729829058436,10.76686563,174.85,174.84,6.69141133]
[1729829059128,7.90606563,174.85,174.84,6.69141133]
[1729829061437,7.90606563,174.85,174.81,2.8614]
[1729829061743,7.90606563,174.85,174.82,15.10524293]
[1729829061941,7.90606563,174.85,174.83,15.10524293]
[1729829062139,7.90606563,174.85,174.84,6.69028569]
[1729829062541,7.90606563,174.85,174.84,15.10573519]
[1729829062743,4.2,174.91,174.86,2.8605]
[1729829062941,7.90606563,174.9,174.87,6.69028569]
[1729829063243,7.90606563,174.9,174.88,5.25936856]
[1729829063445,18.62286563,174.92,174.87,7.90606563]
[1729829063648,18.62286563,174.92,174.88,5.2597147]
[1729829063843,11.56316563,174.92,174.83,4.2]
[1729829064045,4.2,174.95,174.9,2.86]
[1729829064348,7.90606563,174.93,174.9,2.86]
[1729829064743,7.90606563,174.93,174.91,5.26024181]
[1729829065048,7.90606563,174.93,174.9,2.86]
[1729829065244,7.90606563,174.93,174.91,1.430448]
[1729829065434,7.90606563,174.93,174.91,6.69042135]
[1729829065639,7.90606563,174.93,174.92,5.25997335]
[1729829066245,7.90606563,174.93,174.9,2.86]
[1729829066436,7.90606563,174.93,174.91,6.69096669]
[1729829066641,7.90606563,174.93,174.92,5.26051218]
[1729829067246,7.90606563,174.95,174.92,5.26051218]
[1729829067446,7.90606563,174.95,174.9,7.90606563]
[1729829067636,7.90606563,174.95,174.91,15.11060023]
[1729829067836,7.90606563,174.95,174.92,6.69201182]
[1729829068042,7.90606563,174.95,174.9,7.90606563]
[1729829068241,7.90606563,174.95,174.91,17.97020022]
[1729829068442,7.90606563,174.95,174.92,6.69194802]
[1729829068644,7.90606563,174.95,174.93,5.26153262]
[1729829068853,7.90606563,174.95,174.91,2.8598]
[1729829069150,7.90606563,174.95,174.92,9.55209472]
[1729829069340,7.90606563,174.95,174.93,5.26230984]
[1729829069535,7.90606563,174.95,174.9,7.90606563]
[1729829069749,7.90606563,174.95,174.91,15.11249946]
[1729829069941,7.90606563,174.95,174.92,6.69277125]
[1729829070143,7.90606563,174.95,174.93,5.26233013]
[1729829070454,7.90606563,174.95,174.91,2.8598]
[1729829070645,7.90606563,174.95,174.92,6.6924931]
[1729829070847,7.90606563,174.95,174.93,5.2620652]
[1729829071047,10.76526563,174.95,174.91,2.8598]
[1729829071246,10.76526563,174.95,174.92,6.69226633]
[1729829071448,10.76526563,174.95,174.91,2.8598]
[1729829071648,10.76526563,174.95,174.92,6.69229341]
[1729829071849,10.76526563,174.95,174.91,2.8598]
[1729829072053,10.76526563,174.95,174.92,6.69227984]
[1729829072242,10.76526563,174.95,174.93,5.26153986]
[1729829072552,10.76526563,174.95,174.91,2.8598]
[1729829072749,10.76526563,174.95,174.92,5.26153162]
[1729829072946,10.76526563,174.95,174.93,5.26153162]
[1729829073149,10.76526563,174.95,174.9,10.76606563]
[1729829073352,10.76526563,174.95,174.91,15.11025294]
[1729829073551,10.76526563,174.95,174.92,5.26146856]
[1729829073754,10.76526563,174.95,174.9,10.76606563]
[1729829073957,10.76526563,174.95,174.91,15.11039658]
[1729829074152,10.76526563,174.95,174.92,5.2615238]
[1729829074448,10.76526563,174.95,174.9,10.76606563]
[1729829074655,10.76526563,174.95,174.91,15.11017297]
[1729829074857,10.76526563,174.95,174.92,5.26143781]
[1729829075054,10.76526563,174.95,174.9,10.76606563]
[1729829075257,10.76526563,174.95,174.91,15.10981927]
[1729829075557,10.76526563,174.95,174.92,5.26130177]
[1729829075856,10.76526563,174.95,174.9,10.76606563]
[1729829076057,2.8594,174.94,174.91,15.10981543]
[1729829076246,2.8594,174.94,174.9,10.76606563]
[1729829076450,2.8594,174.94,174.92,5.26130029]
[1729829076651,10.76556563,174.93,174.92,5.26130029]
[1729829076847,7.90606563,174.93,174.86,12.10606563]
[1729829077050,7.90606563,174.9,174.87,15.1099996]
[1729829077257,7.90606563,174.9,174.88,15.1099996]
[1729829077458,7.90606563,174.9,174.89,6.6919024]
[1729829077658,7.90606563,174.9,174.89,5.26131075]
[1729829078950,10.76606563,174.9,174.86,12.10606563]